Cogmind - Beta 10.2 @@@ ROGUE MODE // 2021.09.20 @ 00:01:46 Player: Jezoensis Result: Self-destructed Performance ------------- Evolutions (4) 2000 Regions Visited (14) 2800 Robots Destroyed (146) 730 Value Destroyed (4303) 4303 Prototype IDs (33) 660 Alien Tech Used (1) 200 Bonus (1156) 1156 TOTAL SCORE: 11849 Bonus ------- High Alert Combat Kills 156 Entered Garrisons 200 Used RIF Installer 500 Aligned with FarCom 300 Cogmind --------- Core Integrity 747/850 Matter 16/300 Energy 84/100 System Corruption 0% Temperature Cool (9) Movement Walking (180) Ox2 Location -6/Factory Parts ------- > --- POWER (1) -------- (None) > --- PROPULSION (4) --- Flexi-carbon Leg > --- UTILITY (8) ------ Large Storage Unit High-capacity Storage Unit Enhanced Optical Array Improved Terrain Scan Processor Transmission Jammer Drone Bay (0/2) > --- WEAPON (3) ------- (None) > --- INVENTORY (18) --- Cooled Ion Engine Improved Heat Sink Large Storage Unit High-capacity Storage Unit High-capacity Matter Pod (200) Advanced Terrain Scanner Advanced Terrain Scanner Improved Weapon Shielding Dynamic Insulation System Improved System Backup Module Improved Field Recycling Unit (140) Gauss Rifle Gauss Rifle Flak Gun Flak Gun Flak Gun Improved Grenade Launcher Axe Peak State ------------ > --- POWER ------------ Improved Deuterium Engine > --- PROPULSION ------- Light Treads Medium Treads > --- UTILITY ---------- Large Storage Unit High-capacity Storage Unit Enhanced Optical Array Advanced Terrain Scanner Improved Terrain Scan Processor Transmission Jammer Improved Weapon Shielding Improved Shield Generator > --- WEAPON ----------- Minigun Gauss Rifle Flak Gun > --- INVENTORY -------- Cooled Ion Engine Improved Heat Sink Large Storage Unit High-capacity Storage Unit High-capacity Matter Pod Advanced Terrain Scanner Hardened Light Armor Plating Dynamic Insulation System Improved System Backup Module Improved Field Recycling Unit Drone Bay Gauss Rifle Flak Gun Flak Gun Improved Grenade Launcher Axe [Rating: 47] Favorites ----------- Power Improved Deuterium Engine Engine Improved Deuterium Engine Propulsion Light Treads Treads Light Treads Leg Flexi-carbon Leg Utility Large Storage Unit Device Improved Terrain Scanner Storage Large Storage Unit Processor Improved Terrain Scan Processor Protection Improved Weapon Shielding Weapon Minigun Energy Gun Particle Gun Ballistic Gun Minigun Launcher Mini Grenade Launcher Special Weapon Mining Laser Slashing Weapon Axe Build | -11 -10 -10 -9 -9 -9 -8 -8 -8 -7 -7 -7 -7 -7 -6 ------- Run | Scr Mat Min Mat Min Exi Min Mat Sto Fac Gar Fac Low Low Fac Slots Evolved 8 | . . . 2 . . . 2 . 2 . . . . 2 Power . | . . . . . . . . . . . . . . . Propulsion 2 | . . . 1 . . . . . 1 . . . . . Utility 5 | . . . 1 . . . 1 . 1 . . . . 2 Weapon 1 | . . . . . . . 1 . . . . . . . Parts Attached 230 | 7 10 6 24 5 2 6 40 28 40 15 15 14 9 9 Power 12 | 1 1 . 2 . . . 1 2 4 . . . . 1 Engine 12 | 1 1 . 2 . . . 1 2 4 . . . . 1 Core . | . . . . . . . . . . . . . . . Reactor . | . . . . . . . . . . . . . . . Propulsion 28 | 2 . 2 3 . . . 8 4 5 1 1 1 . 1 Treads 27 | 2 . 2 3 . . . 8 4 5 1 1 1 . . Leg 1 | . . . . . . . . . . . . . . 1 Wheel . | . . . . . . . . . . . . . . . Hover . | . . . . . . . . . . . . . . . Flight . | . . . . . . . . . . . . . . . Utility 111 | 2 8 2 11 4 2 4 14 2 20 13 9 10 4 6 Device 64 | 1 3 1 3 1 . 2 7 2 15 12 6 5 2 4 Storage 16 | 1 2 . 4 1 2 . 3 . 1 . 2 . . . Processor 8 | . . . 1 . . . 1 . 4 . 1 . 1 . Hackware . | . . . . . . . . . . . . . . . Protection 23 | . 3 1 3 2 . 2 3 . . 1 . 5 1 2 Artifact . | . . . . . . . . . . . . . . . Weapon 79 | 2 1 2 8 1 . 2 17 20 11 1 5 3 5 1 Energy Gun 28 | . 1 1 5 1 . 1 7 9 3 . . . . . Energy Cannon . | . . . . . . . . . . . . . . . Ballistic Gun 30 | 2 . 1 1 . . . 6 5 5 1 3 1 4 1 Ballistic Cannon . | . . . . . . . . . . . . . . . Launcher 6 | . . . . . . 1 2 2 . . . 1 . . Special Weapon 2 | . . . 2 . . . . . . . . . . . Impact Weapon . | . . . . . . . . . . . . . . . Slashing Weapon 13 | . . . . . . . 2 4 3 . 2 1 1 . Piercing Weapon . | . . . . . . . . . . . . . . . Special Melee Weapon . | . . . . . . . . . . . . . . . Unidentified Prototypes 9 | . . . 1 . . . . 7 . . . 1 . . Parts Lost 31 | . . 4 . 2 . . 6 5 4 3 . 2 1 4 Power . | . . . . . . . . . . . . . . . Propulsion 13 | . . 2 . . . . 2 2 1 1 . 2 1 2 Utility 7 | . . . . 1 . . 2 1 . 1 . . . 2 Weapon 11 | . . 2 . 1 . . 2 2 3 1 . . . . Highest Loss Streak 4 | . . 4 . 2 . . 3 3 2 2 . 1 1 3 Average Slot Usage (%) 95 | . 100 99 98 100 100 100 97 99 99 98 100 93 85 71 Engine 8 | . 14 14 11 11 11 11 9 8 6 7 7 7 7 4 Treads 26 | . 28 28 33 33 33 33 26 26 30 30 30 24 14 7 Device 8 | . 10 6 9 9 11 6 6 11 10 6 7 6 6 15 Storage 16 | . 14 14 17 22 22 22 18 18 15 15 15 14 14 12 Processor 8 | . . . 1 . . . 7 6 11 15 15 14 14 12 Protection 2 | . 3 7 4 1 . 4 3 . . . . . 7 6 Energy Gun 6 | . 10 14 8 11 11 9 10 12 6 4 . . . . Ballistic Gun 15 | . 17 13 10 11 11 11 14 12 14 16 19 22 21 12 Naked Turns . | . . . . . . . . . . . . . . . Heaviest Build 81 | 13 27 33 63 63 63 69 66 70 71 79 71 74 76 81 Greatest Support 80 | 40 40 40 64 64 64 64 67 67 80 80 80 80 68 48 Greatest Overweight (x) 19 | . . . 1 . . 1 1 1 . . . 1 1 19 Average Overweight (x) . | . . . . . . . . . . . . . 1 2 Largest Inventory Capacity 24 | 6 10 10 18 18 18 18 18 18 18 18 24 18 18 18 Average Capacity 16 | 5 8 10 14 17 16 18 16 18 18 18 18 18 18 18 Most Carried 18 | 4 10 10 17 17 17 18 18 18 18 18 18 18 18 18 Average Carried 15 | 2 8 8 12 16 16 17 16 16 16 16 16 17 17 16 Final Capacity 18 | 6 10 10 18 16 18 18 18 18 18 18 18 18 18 18 Final Carried 18 | 4 10 10 17 16 17 18 18 16 18 15 18 17 17 18 Class Distribution -------------------- 41% | Scavenger-Skirmisher 28% | Mutant 15% | Skirmisher 7% | Scavenger-Mutant 3% | Scavenger-Assassin Dominant Class ---------------- Mutant | -10/Materials Mutant | -10/Mines Scavenger-Mutant | -9/Materials Mutant | -9/Mines Mutant | -9/Exiles Skirmisher | -8/Mines Skirmisher | -8/Materials Skirmisher | -8/Storage Scavenger-Skirmisher | -7/Factory Scavenger-Skirmisher | -7/Garrison Scavenger-Skirmisher | -7/Factory Scavenger-Skirmisher | -7/Lower Caves Scavenger-Skirmisher | -7/Lower Caves Scavenger-Skirmisher | -6/Factory Resources | -11 -10 -10 -9 -9 -9 -8 -8 -8 -7 -7 -7 -7 -7 -6 ----------- Run | Scr Mat Min Mat Min Exi Min Mat Sto Fac Gar Fac Low Low Fac Matter Collected 4216 | 331 370 81 133 207 . 89 693 466 634 222 77 566 326 21 Remotely . | . . . . . . . . . . . . . . . Salvage Created 5415 | 165 581 119 289 . . 152 926 924 775 222 77 525 326 334 Parts 309 | 14 26 9 21 . . 7 57 55 63 9 4 20 12 12 Haulers Intercepted 5 | . 2 . 1 . . . 1 . . . 1 . . . Recyclers Shooed 4 | . 1 . . . . . . 1 2 . . . . . Parts Field Recycled 20 | . . . . . . . . . . 20 . . . . Retrieved Matter 305 | . . . . . . . . . . 305 . . . . Parts Self-Destructed 28 | . . . . . . . . . . . . 23 5 . Prevented . | . . . . . . . . . . . . . . . Kills | -11 -10 -10 -9 -9 -9 -8 -8 -8 -7 -7 -7 -7 -7 -6 ------- Run | Scr Mat Min Mat Min Exi Min Mat Sto Fac Gar Fac Low Low Fac Combat Hostiles Destroyed 106 | . 10 5 6 2 . 7 29 13 11 4 . 10 3 6 Guns 86 | . 10 5 6 2 . 3 19 8 11 4 . 9 3 6 AOE 19 | . . . . . . 4 10 4 . . . 1 . . Classes Destroyed 17 | 2 4 1 3 1 . . 2 1 1 1 . . 1 . Worker 2 | . . . . . . . 1 1 . . . . . . Builder 11 | . . . 2 . . . . 4 4 . . . . 1 Tunneler 6 | 5 . . . . . . . . 1 . . . . . Hauler 5 | . 2 . 1 . . . 1 . . . 1 . . . Recycler 6 | 1 1 . . . . . 1 1 2 . . . . . Operator 1 | . 1 . . . . . . . . . . . . . Watcher 9 | . 2 . 2 . . . . 1 3 . 1 . . . Swarmer 34 | . . 3 3 . . 4 13 . 5 . . . 3 3 Grunt 48 | . 10 2 1 . . 3 11 9 1 . . 8 . 3 Brawler 2 | . . . 1 . . . . . . . . 1 . . Duelist 1 | . . . . . . . . 1 . . . . . . Protector 1 | . . . . . . . 1 . . . . . . . Sentry 14 | . . . 1 . . . 4 3 3 2 . 1 . . Demolisher 2 | . . . . 2 . . . . . . . . . . Hunter 2 | . . . . . . . . . . 2 . . . . Programmer 2 | . . . . . . . . . 2 . . . . . Samaritan 5 | . . . . . . . . . . . . . 5 . Best Kill Streak 13 | 3 7 5 3 2 . 4 12 13 3 1 1 3 3 4 Combat Bots Only 12 | . 5 5 3 2 . 4 12 7 3 1 . 3 3 3 Max Kills in Single Turn 4 | 1 1 1 1 1 . 4 4 4 1 1 1 1 2 2 Gunslinging 1 | . . . . . . . 1 . . . . . 1 . Exploded 4 | . . . . . . 4 4 2 . . . 1 . . Melee . | . . . . . . . . . . . . . . . Uniques/NPCs Destroyed . | . . . . . . . . . . . . . . . Combat | -11 -10 -10 -9 -9 -9 -8 -8 -8 -7 -7 -7 -7 -7 -6 -------- Run | Scr Mat Min Mat Min Exi Min Mat Sto Fac Gar Fac Low Low Fac Damage Taken 7166 | . 548 354 153 610 . 265 1231 1376 934 506 . 636 93 460 Core 933 | . 80 37 7 87 . 49 90 358 92 12 . 18 . 103 Absorbed by Shields 314 | . . . . . . . 66 . 46 119 . . . 83 Core Remaining (%) 63 | 100 . 53 . . . 64 . 18 . . . . 82 . Volleys Fired 384 | 29 72 9 28 7 . 11 55 42 50 21 4 25 14 17 Largest 3 | 2 2 2 2 2 . 2 3 3 3 3 3 3 3 3 Hottest 148 | 40 85 85 100 88 . 88 148 134 107 103 81 89 81 81 Shots Fired 955 | 58 144 18 50 14 . 21 160 100 149 63 12 73 42 51 Gun 932 | 58 144 18 44 14 . 20 152 95 149 63 12 70 42 51 Cannon . | . . . . . . . . . . . . . . . Launcher 17 | . . . . . . 1 8 5 . . . 3 . . Special 6 | . . . 6 . . . . . . . . . . . Kinetic 665 | 58 97 9 22 7 . 11 92 52 100 42 12 70 42 51 Thermal 255 | . 47 9 28 7 . 9 60 25 49 21 . . . . Explosive 12 | . . . . . . 1 8 . . . . 3 . . Electromagnetic 23 | . . . . . . . . 23 . . . . . . Robot Hit Streak 26 | 10 12 10 11 5 . 13 18 11 20 26 8 19 19 7 Robot Miss Streak 6 | 2 2 1 2 2 . 1 5 3 2 2 3 5 4 6 Penetration Max 1 | . . . . . . . . . . . 1 . . . Secondary Targets 17 | . 1 2 1 . . 1 4 1 2 . . 3 1 1 Max Gunslinging Chain 1 | . 1 1 1 . . 1 1 1 1 . . 1 1 1 Shots Hit Robots 662 | 45 102 14 28 10 . 17 103 64 104 48 11 49 31 36 Core Hits 313 | 12 31 6 15 4 . 15 56 30 34 11 4 44 30 21 Critical Hits 9 | 2 1 . 1 . . . 1 . 1 . . . 2 1 Critical Kills 4 | . . . 1 . . . 1 . 1 . . . . 1 Critical Parts Destroyed 5 | 2 1 . . . . . . . . . . . 2 . Melee Attacks 24 | . . . . . . . 3 7 8 . 4 1 1 . Impact . | . . . . . . . . . . . . . . . Slashing 24 | . . . . . . . 3 7 8 . 4 1 1 . Piercing . | . . . . . . . . . . . . . . . Sneak Attacks 1 | . . . . . . . . . 1 . . . . . Combat Hostiles . | . . . . . . . . . . . . . . . Follow-up Attacks . | . . . . . . . . . . . . . . . Damage Inflicted 12098 | 472 1282 171 335 177 . 494 2365 1591 1874 698 235 1155 618 631 Guns 9715 | 472 1282 171 335 177 . 298 1305 946 1657 698 234 909 618 613 Cannons . | . . . . . . . . . . . . . . . Explosions 2186 | . . . . . . 196 1045 632 67 . . 246 . . Melee 150 | . . . . . . . . . 150 . . . . . Ramming 47 | . . . . . . . 15 13 . . 1 . . 18 Kinetic 6257 | 472 750 59 75 100 . 160 619 360 891 397 234 909 618 613 Thermal 3176 | . 532 112 260 77 . 138 686 304 766 301 . . . . Explosive 1554 | . . . . . . 196 1045 . 67 . . 246 . . Electromagnetic 914 | . . . . . . . . 914 . . . . . . Impact . | . . . . . . . . . . . . . . . Slashing 150 | . . . . . . . . . 150 . . . . . Piercing . | . . . . . . . . . . . . . . . Highest Corruption 2 | . . . 1 1 1 1 . . 2 2 2 . . . Average Corruption 1 | . . . 1 1 1 1 . . 1 2 1 . . . Corruption Purged 7 | . . . . . . . . . 3 . 4 . . . Effects 17 | . . . . 1 . 1 . . 4 10 1 . . . Message Errors 5 | . . . . . . 1 . . 2 2 . . . . Energy Discharges 2 | . . . . . . . . . . 1 1 . . . Data Loss (minor) 5 | . . . . 1 . . . . 2 2 . . . . Targeting Errors 5 | . . . . . . . . . . 5 . . . . Overload Shots . | . . . . . . . . . . . . . . . Overflow Damage 132 | . . . . . . . 23 55 51 . . . . 3 Projectiles . | . . . . . . . . . . . . . . . Explosions 78 | . . . . . . . 23 55 . . . . . . Melee 54 | . . . . . . . . . 51 . . . . 3 Knockbacks . | . . . . . . . . . . . . . . . Impact . | . . . . . . . . . . . . . . . Kinetic . | . . . . . . . . . . . . . . . Secondary . | . . . . . . . . . . . . . . . Self-Inflicted Damage 86 | . . . . . . . . 86 . . . . . . Shots 4 | . . . . . . . . 4 . . . . . . Rammed 8 | . . . . . . . 3 3 . . 1 . . 1 Targets Rammed 8 | . . . . . . . 3 3 . . 1 . . 1 Kicked . | . . . . . . . . . . . . . . . Crushed . | . . . . . . . . . . . . . . . Highest Temperature 528 | . 445 333 184 97 . 324 493 528 210 123 . 138 45 139 Average Temperature 101 | . 114 169 51 45 . 166 131 144 43 57 . 65 23 59 Received Heat Transfer 2148 | . 306 147 9 . . 135 342 468 144 69 . 336 . 192 Effects 11 | . 3 2 . . . . 1 5 . . . . . . Shutdowns 4 | . 2 . . . . . 1 1 . . . . . . Energy Bleed 1 | . 1 . . . . . . . . . . . . . Interference 2 | . . 2 . . . . . . . . . . . . Matter Decay 1 | . . . . . . . . 1 . . . . . . Damage (minor) 1 | . . . . . . . . 1 . . . . . . Damage (core) 2 | . . . . . . . . 2 . . . . . . Siege Activations . | . . . . . . . . . . . . . . . Robots Corrupted 1 | . . . . . . . . 1 . . . . . . Combat Hostiles 1 | . . . . . . . . 1 . . . . . . Parts Fried 4 | . . . . . . . . 4 . . . . . . Impact Corruptions 1 | . . . . . . . . . . . . . . 1 Robots Melted . | . . . . . . . . . . . . . . . Combat Hostiles . | . . . . . . . . . . . . . . . Parts Melted 11 | . 1 . 3 . . . 3 1 3 . . . . . Heat Transferred 6710 | . 1258 259 629 185 . 333 1517 568 1369 592 . . . . Parts Sabotaged . | . . . . . . . . . . . . . . . Parts Stolen . | . . . . . . . . . . . . . . . Parts Stripped . | . . . . . . . . . . . . . . . Power Chain Reactions 2 | . . . . . . . . 2 . . . . . . Missiles Intercepted . | . . . . . . . . . . . . . . . Alert | -11 -10 -10 -9 -9 -9 -8 -8 -8 -7 -7 -7 -7 -7 -6 ------- Run | Scr Mat Min Mat Min Exi Min Mat Sto Fac Gar Fac Low Low Fac Peak Influence 716 | 30 292 109 289 72 . 171 716 458 378 371 232 . . 190 Initial 302 | . 19 14 42 62 . . 66 302 207 186 194 . . . Average 211 | 12 125 97 177 62 . 75 443 285 277 282 156 . . 81 Maximum Alert Level 3 | . 1 . 1 . . . 3 2 1 1 1 . . . Low Security (%) 51 | 100 80 100 62 100 . 100 17 15 10 4 89 . . 100 Level 1 41 | . 19 . 37 . . . 28 71 89 95 10 . . . Level 2 5 | . . . . . . . 41 13 . . . . . . Level 3 1 | . . . . . . . 13 . . . . . . . Level 4 . | . . . . . . . . . . . . . . . Level 5 . | . . . . . . . . . . . . . . . High Security . | . . . . . . . . . . . . . . . Max Security . | . . . . . . . . . . . . . . . Squads Dispatched 16 | . 3 . 1 . . . 3 2 3 . 1 . . 3 Investigation 5 | . 1 . 1 . . . 2 . . . . . . 1 Extermination 3 | . . . . . . . . . 2 . 1 . . . Reinforcement 6 | . 2 . . . . . . 2 . . . . . 2 Assault 1 | . . . . . . . 1 . . . . . . . Garrison 1 | . . . . . . . . . 1 . . . . . Intercept . | . . . . . . . . . . . . . . . Construction Impeded . | . . . . . . . . . . . . . . . Haulers Reinforced . | . . . . . . . . . . . . . . . Stealth | -11 -10 -10 -9 -9 -9 -8 -8 -8 -7 -7 -7 -7 -7 -6 --------- Run | Scr Mat Min Mat Min Exi Min Mat Sto Fac Gar Fac Low Low Fac Distress Signals 5 | . 2 . . . . . . 2 1 . . . . . Communications Jammed 1 | . . . . . . . . 1 . . . . . . Distress Signals 1 | . . . . . . . . 1 . . . . . . Times Spotted 153 | . 21 5 10 2 . 7 37 22 18 5 2 12 3 9 Peak Tracking Total 8 | . 4 5 3 2 . 4 8 7 4 2 2 4 3 3 Tactical Retreats 16 | . 4 . 1 . . . 5 2 2 1 . 1 . . Traps | -11 -10 -10 -9 -9 -9 -8 -8 -8 -7 -7 -7 -7 -7 -6 ------- Run | Scr Mat Min Mat Min Exi Min Mat Sto Fac Gar Fac Low Low Fac Traps Triggered 6 | . . . . . . . 1 . 1 . 2 . . 2 Indirectly . | . . . . . . . . . . . . . . . Trap Hack Attempts . | . . . . . . . . . . . . . . . Triggered . | . . . . . . . . . . . . . . . Disarmed . | . . . . . . . . . . . . . . . Reprogrammed . | . . . . . . . . . . . . . . . Reused . | . . . . . . . . . . . . . . . Traps Extracted . | . . . . . . . . . . . . . . . Installed . | . . . . . . . . . . . . . . . Triggered . | . . . . . . . . . . . . . . . Machines | -11 -10 -10 -9 -9 -9 -8 -8 -8 -7 -7 -7 -7 -7 -6 ---------- Run | Scr Mat Min Mat Min Exi Min Mat Sto Fac Gar Fac Low Low Fac Machines Disabled 9 | . . . . . . . 1 3 2 . . . . 3 Max in Single Turn 1 | . . . . . . . 1 1 1 . . . . 1 Garrison Access 1 | . . . . . . . 1 . . . . . . . Machines Sabotaged . | . . . . . . . . . . . . . . . Garrisons Compromised . | . . . . . . . . . . . . . . . Overloaded Fab Kills . | . . . . . . . . . . . . . . . Fab Network Shutdowns . | . . . . . . . . . . . . . . . Hacking | -11 -10 -10 -9 -9 -9 -8 -8 -8 -7 -7 -7 -7 -7 -6 --------- Run | Scr Mat Min Mat Min Exi Min Mat Sto Fac Gar Fac Low Low Fac Machines Accessed 28 | . 5 . 5 . 1 . 4 4 6 . 1 . . 2 Terminals 21 | . 5 . 4 . . . 4 4 2 . . . . 2 Fabricators 2 | . . . . . . . . . 2 . . . . . Repair Stations 1 | . . . . . . . . . 1 . . . . . Recycling Units 2 | . . . 1 . . . . . . . 1 . . . Scanalyzers . | . . . . . . . . . . . . . . . Garrison Access 1 | . . . . . . . . . 1 . . . . . Total Hacks 81 | . 19 . 20 . 1 . 10 12 11 . 2 . . 6 Successful 47 | . 9 . 12 . 1 . 7 8 7 . 1 . . 2 Failed 33 | . 9 . 8 . . . 3 4 4 . 1 . . 4 Catastrophic 5 | . . . 1 . . . 2 1 . . . . . 1 Database Lockouts 1 | . 1 . . . . . . . . . . . . . Manual 61 | . 15 . 16 . 1 . 8 10 4 . 2 . . 5 Terminals 69 | . 19 . 17 . . . 10 12 5 . . . . 6 Fabricators 4 | . . . . . . . . . 4 . . . . . Repair Stations 1 | . . . . . . . . . 1 . . . . . Recycling Units 5 | . . . 3 . . . . . . . 2 . . . Scanalyzers . | . . . . . . . . . . . . . . . Garrison Access 1 | . . . . . . . . . 1 . . . . . Terminal Hacks 25 | . 7 . 7 . 1 . 4 4 1 . . . . 1 Part Schematic 1 | . 1 . . . . . . . . . . . . . Robot Analysis 5 | . 1 . 3 . . . 1 . . . . . . . Prototype ID Bank 1 | . 1 . . . . . . . . . . . . . Level Access Points 1 | . . . . . . . . 1 . . . . . . Branch Access Points 2 | . . . 1 . . . . . 1 . . . . . Terminal Index 3 | . 1 . . . . . 1 . . . . . . 1 Unreport Threat 2 | . 1 . . . . . . 1 . . . . . . Locate Traps 6 | . 1 . 2 . . . 1 2 . . . . . . Zone Layout 3 | . 1 . 1 . . . 1 . . . . . . . EX-Prototype ID Bank 1 | . . . . . 1 . . . . . . . . . Fabricator Hacks 3 | . . . . . . . . . 3 . . . . . Load Schematic 1 | . . . . . . . . . 1 . . . . . Build 2 | . . . . . . . . . 2 . . . . . Repair Station Hacks . | . . . . . . . . . . . . . . . Recycling Unit Hacks . | . . . . . . . . . . . . . . . Scanalyzer . | . . . . . . . . . . . . . . . Garrison Access Hacks 1 | . . . . . . . . . 1 . . . . . Unlock Access 1 | . . . . . . . . . 1 . . . . . Unauthorized Hacks 18 | . 2 . 5 . . . 3 4 2 . 1 . . 1 Terminals 15 | . 2 . 4 . . . 3 4 1 . . . . 1 Track 3 | . . . 2 . . . . 1 . . . . . . Assimilate 2 | . . . . . . . . 1 . . . . . 1 Botnet 9 | . 2 . 2 . . . 2 2 1 . . . . . Operators 1 | . . . . . . . 1 . . . . . . . Fabricators 1 | . . . . . . . . . 1 . . . . . Haulers 1 | . . . . . . . . . 1 . . . . . Repair Stations . | . . . . . . . . . . . . . . . Recycling Units 2 | . . . 1 . . . . . . . 1 . . . Recyclers 2 | . . . 1 . . . . . . . 1 . . . Scanalyzers . | . . . . . . . . . . . . . . . Garrison Access . | . . . . . . . . . . . . . . . Data Cores Recovered . | . . . . . . . . . . . . . . . Used . | . . . . . . . . . . . . . . . Hacking Detections 26 | . 5 . 5 . . . 4 4 5 . 1 . . 2 Full Trace Events 4 | . 1 . 1 . . . 1 . . . . . . 1 Feedback Events 1 | . . . 1 . . . . . . . . . . . Corruption 1 | . . . 1 . . . . . . . . . . . Feedback Blocked . | . . . . . . . . . . . . . . . Robot Schematics Acquired . | . . . . . . . . . . . . . . . Robots Built . | . . . . . . . . . . . . . . . Matter . | . . . . . . . . . . . . . . . Time . | . . . . . . . . . . . . . . . Total Robot Build Rating . | . . . . . . . . . . . . . . . Part Schematics Acquired 1 | . 1 . . . . . . . . . . . . . Parts Built 3 | . . . . . . . . . 3 . . . . . Matter 292 | . . . . . . . . . 292 . . . . . Time 72 | . . . . . . . . . 72 . . . . . Total Part Build Rating 11 | . . . . . . . . . 11 . . . . . Parts Repaired . | . . . . . . . . . . . . . . . Time . | . . . . . . . . . . . . . . . Parts Recycled . | . . . . . . . . . . . . . . . Recycled Matter . | . . . . . . . . . . . . . . . Retrieved Matter . | . . . . . . . . . . . . . . . Retrieved Components . | . . . . . . . . . . . . . . . Parts Scanalyzed . | . . . . . . . . . . . . . . . Part Schematics Acquired . | . . . . . . . . . . . . . . . Parts Damaged . | . . . . . . . . . . . . . . . Bothacking | -11 -10 -10 -9 -9 -9 -8 -8 -8 -7 -7 -7 -7 -7 -6 ------------ Run | Scr Mat Min Mat Min Exi Min Mat Sto Fac Gar Fac Low Low Fac Used RIF Installer 1 | . . . . . . . . . . 1 . . . . Robots Hacked . | . . . . . . . . . . . . . . . Non-combat . | . . . . . . . . . . . . . . . Combat . | . . . . . . . . . . . . . . . Robot Hacks Applied . | . . . . . . . . . . . . . . . Relay Couplers Released 2 | . . . . . . . 2 . . . . . . . Machine Destruction 2 | . . . . . . . 2 . . . . . . . Robots Rewired . | . . . . . . . . . . . . . . . Allies Hacked . | . . . . . . . . . . . . . . . Hacks Repelled . | . . . . . . . . . . . . . . . Allies | -11 -10 -10 -9 -9 -9 -8 -8 -8 -7 -7 -7 -7 -7 -6 -------- Run | Scr Mat Min Mat Min Exi Min Mat Sto Fac Gar Fac Low Low Fac Total Allies 1 | . . . . 1 . . . . . . . . . . Largest Group 1 | . . . . 1 . . . . . . . . . . Highest-Rated Group 31 | . . . . 31 . . . . . . . . . . Highest-Rated Ally 31 | . . . . 31 . . . . . . . . . . Total Orders 2 | . . . . . . . . . . . . . . 2 EXPLORE 2 | . . . . . . . . . . . . . . 2 Ally Attacks 2 | . . . . 2 . . . . . . . . . . Total Damage 42 | . . . . 42 . . . . . . . . . . Kills . | . . . . . . . . . . . . . . . Allies Corrupted . | . . . . . . . . . . . . . . . Allies Melted . | . . . . . . . . . . . . . . . Intel | -11 -10 -10 -9 -9 -9 -8 -8 -8 -7 -7 -7 -7 -7 -6 ------- Run | Scr Mat Min Mat Min Exi Min Mat Sto Fac Gar Fac Low Low Fac Robot Analysis Total 5 | . 1 . 3 . . . 1 . . . . . . . Derelict Logs Recovered 7 | . . . . 2 . . . . . . . 2 3 . Drone Launches 2 | . . . . . . . . . . . . . . 2 Drone Recoveries . | . . . . . . . . . . . . . . . Exploration | -11 -10 -10 -9 -9 -9 -8 -8 -8 -7 -7 -7 -7 -7 -6 ------------- Run | Scr Mat Min Mat Min Exi Min Mat Sto Fac Gar Fac Low Low Fac Turns Passed 8697 | 203 877 183 667 422 389 217 728 703 1220 554 566 712 823 433 Spaces Moved 4251 | 69 391 92 331 263 257 111 316 319 588 289 315 348 424 138 Core 16 | 2 . . . . . . . . . . . . . 14 Treads 4235 | 67 391 92 331 263 257 111 316 319 588 289 315 348 424 124 Legs . | . . . . . . . . . . . . . . . Wheels . | . . . . . . . . . . . . . . . Hover . | . . . . . . . . . . . . . . . Flight . | . . . . . . . . . . . . . . . Fastest Speed 50 | 50 160 160 150 150 150 150 145 145 162 162 162 160 180 180 Average Speed 164 | 156 160 160 157 150 150 153 149 157 162 162 162 175 180 263 Slowest Speed 1000 | 160 160 160 180 150 150 170 172 183 162 162 162 180 180 1000 Overloaded Moves . | . . . . . . . . . . . . . . . Propulsion Burnouts . | . . . . . . . . . . . . . . . Robots Hopped . | . . . . . . . . . . . . . . . Cave-ins Triggered 1 | . . . . . . . . 1 . . . . . . Exploration Rate (%) 41 | 6 71 31 38 62 68 30 30 52 22 49 12 58 69 17 Regions Visited 14 Branch Regions 7 Pre-discovered Areas 3 | . . . . 1 . . . . . . . . 2 . Known Exits Taken 4 | . . . 1 . . . . 1 1 . 1 . . . Unknown Exits Taken 9 | 1 1 1 . 1 1 1 1 . . . . 1 1 . Scrap Searched 7 | . . 1 . 1 . 1 . . . . . 2 2 . Spaces Dug 26 | . . . 6 . . . 3 6 5 . 4 1 1 . Terrain Destroyed 136 | . . . 6 . . 14 58 17 20 . 5 14 2 . Melee 17 | . . . . . . . 3 3 5 . 4 1 1 . Projectile 11 | . . . 6 . . . . 3 . . 1 . 1 . AOE 108 | . . . . . . 14 55 11 15 . . 13 . . Terrain Rammed . | . . . . . . . . . . . . . . . Walls Destroyed . | . . . . . . . . . . . . . . . Machines Disabled . | . . . . . . . . . . . . . . . Actions | -11 -10 -10 -9 -9 -9 -8 -8 -8 -7 -7 -7 -7 -7 -6 --------- Run | Scr Mat Min Mat Min Exi Min Mat Sto Fac Gar Fac Low Low Fac Total 5109 | 108 503 109 415 276 262 134 441 433 734 327 353 392 451 171 Wait 64 | . 14 . 8 . . 6 2 4 22 4 . 3 1 . Move 4235 | 68 390 91 330 262 256 110 315 317 587 287 314 347 423 138 Hop . | . . . . . . . . . . . . . . . Pick Up 74 | 4 10 3 14 1 2 1 10 10 10 . 7 . 1 1 Fast Attach 46 | 7 1 1 5 . . . 8 9 7 . 2 3 . 3 Attach 47 | . 1 3 3 3 . . 10 8 8 3 2 1 2 3 Detach 18 | . . . . 1 . . 2 6 3 . 2 . 1 3 Swap 138 | . 8 2 16 2 2 6 22 11 25 12 11 11 7 3 Drop 70 | . 7 . 11 . 2 . 11 15 14 . 6 1 1 2 Fire 384 | 29 72 9 28 7 . 11 55 42 50 21 4 25 14 17 Melee 24 | . . . . . . . 3 7 8 . 4 1 1 . Ram . | . . . . . . . . . . . . . . . Kick . | . . . . . . . . . . . . . . . Crush 8 | . . . . . . . 3 3 . . 1 . . 1 Escape Stasis 1 | . . . . . . . . 1 . . . . . . Rewire . | . . . . . . . . . . . . . . . Trap . | . . . . . . . . . . . . . . . Miscellaneous . | . . . . . . . . . . . . . . . Route ------- -11/Scrapyard -10/Materials (discovered 3 exits: *Mat x2 / [*Min]) -10/Mines -9/Materials (discovered 3 exits: *Mat / *Min x2) -9/Mines (discovered 3 exits: *Mat / *Exi / *Zio) -9/Exiles -8/Mines -8/Materials -8/Storage -7/Factory (discovered 3 exits: Low x2 / Gar) -7/Garrison (discovered 2 exits: *Fac x2) -7/Factory -7/Lower Caves -7/Lower Caves (discovered 2 exits: *Fac / *Zio) -6/Factory (discovered 2 exits: Low x2) History --------- Turn | Location | Event 25 | -11/Scrapyard | Discovered new exit (range 15) 204 | -11/Scrapyard | Entered Materials 306 | -10/Materials | Build established: Mutant 515 | -10/Materials | Discovered new exit (range 19) 770 | -10/Materials | Discovered new exit (range 5) 781 | -10/Materials | Central database locked down 929 | -10/Materials | Discovered new exit (range 6) 1081 | -10/Materials | Entered Mines 1142 | -10/Mines | Lost 4 parts (2n2w) 1255 | -10/Mines | Discovered new exit (range 7) 1264 | -10/Mines | Entered Materials 1264 | -9/Materials | Evolved 2 slots: Propulsion x1, Utility x1 1415 | -9/Materials | Identified exit to Mines 1641 | -9/Materials | Build established: Scavenger-Mutant 1656 | -9/Materials | Discovered new exit (range 8) 1931 | -9/Materials | Entered Mines 1976 | -9/Mines | Learned Materials emergency access door positions 2014 | -9/Mines | Received a Mining Laser from a helpful Derelict 2044 | -9/Mines | Build established: Mutant 2108 | -9/Mines | Assembled infested the area 2173 | -9/Mines | Discovered new exit (range 7) 2232 | -9/Mines | A Derelict revealed a hidden shortcut to a safe place 2318 | -9/Mines | Learned location of Storage (-8) 2347 | -9/Mines | Discovered new exit (range 5) 2353 | -9/Mines | Entered Exiles 2391 | -9/Exiles | Met 8R-AWN 2416 | -9/Exiles | Met EX-HEX 2457 | -9/Exiles | Met EX-BIN 2473 | -9/Exiles | Aligned with FarCom system 2475 | -9/Exiles | Given EX-Vault access code 2509 | -9/Exiles | Opened EX-Vault 2542 | -9/Exiles | Warned to stay clear of 0b10 Research branches 2637 | -9/Exiles | Met EX-DEC 2728 | -9/Exiles | Discovered new exit (range 10) 2742 | -9/Exiles | Entered Mines 2952 | -8/Mines | Discovered new exit (range 6) 2959 | -8/Mines | Entered Materials 2959 | -8/Materials | Evolved 2 slots: Utility x1, Weapon x1 3119 | -8/Materials | Destroyed 12 combat bots 3127 | -8/Materials | Lost 3 parts (1n2u) 3313 | -8/Materials | Discovered new exit (range 6) 3494 | -8/Materials | Destroyed 9 combat bots 3642 | -8/Materials | Build established: Skirmisher 3687 | -8/Materials | Entered Storage 4000 | -8/Storage | Identified exit to Factory 4157 | -8/Storage | Destroyed 7 combat bots 4157 | -8/Storage | Core integrity fell below 50% 4195 | -8/Storage | Lost 3 parts (1n1u1w) 4371 | -8/Storage | Crushed by falling debris 4385 | -8/Storage | Core integrity fell below 20% 4390 | -8/Storage | Entered Factory 4390 | -7/Factory | Evolved 2 slots: Propulsion x1, Utility x1 4469 | -7/Factory | Fabricated Imp. System Backup Module? 4681 | -7/Factory | Build established: Scavenger-Skirmisher 4860 | -7/Factory | Identified exit to Lower Caves 5124 | -7/Factory | Fabricated Hcp. Storage Unit (x1) 5529 | -7/Factory | Garrison activated, responded to threat 5609 | -7/Factory | Identified exit to Garrison 5610 | -7/Factory | Entered Garrison 5720 | -7/Garrison | Triggered checkpoint 5801 | -7/Garrison | Discovered new exit (range 19) 5987 | -7/Garrison | Spotted B-75 Beast 5987 | -7/Garrison | Spotted B-75 Beast 6102 | -7/Garrison | Triggered checkpoint 6132 | -7/Garrison | Discovered new exit (range 11) 6156 | -7/Garrison | Installed Relay Interface Framework 6164 | -7/Garrison | Entered Factory 6589 | -7/Factory | Discovered exit to Lower Caves (range 4) 6730 | -7/Factory | Entered Lower Caves 6732 | -7/Lower Caves | Attracted the attention of an 0b10 checkpoint 7050 | -7/Lower Caves | Learned Factory stockpile data 7356 | -7/Lower Caves | Learned location of 1 exit from Factory 7378 | -7/Lower Caves | Discovered new exit (range 19) 7419 | -7/Lower Caves | Found Alien Artifact 7419 | -7/Lower Caves | Identified Core Expander 7419 | -7/Lower Caves | Installed Core Expander, added new Utility slot 7442 | -7/Lower Caves | Entered another Lower Caves area 7513 | -7/Lower Caves | Encountered a Warlord checkpoint 7546 | -7/Lower Caves | Discovered new exit (range 15) 7895 | -7/Lower Caves | Discovered new exit (range 10) 7923 | -7/Lower Caves | Learned location of Extension (-4) 7939 | -7/Lower Caves | Identified exit to Zion 8265 | -7/Lower Caves | Entered Factory 8265 | -6/Factory | Evolved 2 slots: Utility x2 8266 | -6/Factory | Identified exit to Lower Caves 8572 | -6/Factory | Lost 3 parts (2n1u) 8698 | -6/Factory | Self-destructed Last Messages --------------- 08601_ K-01 Serf collects debris. 08603_ K-01 Serf cleans the Megafabricator. 08606_ K-01 Serf collects debris. 08606_ Acquired 21 matter. 08607_ Drone triggered Chute Trap. 08607_ A hatch slides open and sucks a vortex of air into the floor. 08607_ Drone sucked into the hatch. 08608_ R-10 Processor collects Imp. Deuterium Engine. 08609_ K-01 Serf cleans the Pressure Siphon. 08609_ K-01 Serf cleans the Megafabricator. 08611_ K-01 Serf cleans the Pressure Siphon. 08612_ K-01 Serf collects debris. 08613_ K-01 Serf cleans the Pressure Siphon. 08617_ R-10 Processor collects Hvy. Laser. 08617_ K-01 Serf cleans the Pressure Siphon. 08627_ R-10 Processor collects Minigun. 08629_ K-01 Serf cleans the Pressure Siphon. 08689_ Hrd. Light Armor Plating destroyed. 08696_ Acquired Flexi-carbon Leg. 08698_ U-05 Engineer lays Concrete. Map ----- +----------------------------------------------------+ | = # ?"?? ? # | | ^ ] +? ? # | | "" #?"""?? # | | ! "" # """"? # | | """" """" T" # ""? ? # | | """ """" """" "" ######## ? ? ? # | | """ """" """" "" """#?#?################### | | """ """##?## # ] | | """ """" """" """" "##?## "" # ] | | """" """" """" "F"##### """ """ # | | """" """" """" """##### """ S" # """ """ | | ####???# """ # """ """ | | ##### """" """" """" ##??#### # """ """ | | ##### """" """" """" ###?#### * # | | #??## """" """" """" ##??##?# #+####### | | ?##?# ##############+### #####?? | | #?### """" """" """% % t #?? | | ?#?## """" """" """% ^ #?? | | #?### """" """" "%%%% """"""""" #?? | | ???## %%%%% ^ """"""""" #?? | | ##### """" ""%%%%%""% u """"""""" ### | | """" "%""%"""" [ """"""""" | | """" """" """" """"""""" | | u =! """"""""" | | g =! | | ! g @ =! | | ######### ###########+#+################### | | #?????#?#w #?#### ##????????????? | | #???????# #?#??# " " " #?????????????? | | #???????# ###### " " " #?????????????? | | #???????# + " " " #?????????????? | | #???????# ###### " " " ##????????????? | | #???????# ###### " " " #?????????????? | | ####???????# # # ! " " " #?????????????? | | ???????????# # # " " " #?????????????? | | ???????????# # # !! " " " #?????????????? | | ???????????# # # !! " " " #?????????????? | | ???????????# # # ???????????????? | | ???????????# # # ??????????????? | | ???????????# + ############???????????????? | | ????????####+#+########??????????????????????????? | | ????????# #???????????????????????????? | | ????????# #???????????????????????????? | | ????????#^ ] #???????????????????????????? | | ????????# #???????????????????????????? | | ????????# """ """ #???????????????????????????? | | ????????# """ """ #???????????????????????????? | | ????????# """ """ #???????????????????????????? | | ????????# #???????????????????????????? | | ????????# """ """ #???????????????????????????? | +----------------------------------------------------+ Best States ------------- Heat Dissipation 48 Energy Generation 16 Energy Capacity 290 Matter Stores 300 Matter Capacity 300 Sight Range 22 Terrain Scan Range 20 Terrain Scan Density 110 Jamming Range 8 EM Shielding 2 Armor Coverage 225 Weapon Shielding 66 Evasion (%) 40 Recoil Reduction 4 Item Schematics ----------------- Hcp. Storage Unit | -10/Materials | Hacked Robot Schematics ------------------ None Fabricated ------------ Imp. System Backup Module | x2 | -7/Factory | Preloaded Hcp. Storage Unit | x1 | -7/Factory Alien Tech Used ----------------- Core Expander Achievements -------------- None Challenges ------------ None Game ------ Seed ControlGodRecalibrator Manual? 0 Play Time 01:27:08 Cumulative 286.5 hours Start 2021.09.19 @ 22:35:43 End 2021.09.20 @ 00:01:46 Sessions 1 Manual Loads 0 Difficulty Rogue Special Mode None Game No. 121 Rogue 19 Adventurer 100 Explorer 2 Win Type - Total 18 Types 15/2/0/0/0/0/0/0/1 Lore% 48 Gallery% 76 Achievement% 53 Wizard Run 0 Options --------- ASCII 0 Keyboard 1 Movement Numpad Keybinds 0 Fullscreen 1 Font 36/TerminusFine Map View 76x50 Tactical HUD 1 Map Filters NONE Filters NONE Steam 1 RUN: df07a4e7-ea0a-4987-b39f-aeb2bb0310be